[Event "Late-Titled-Tuesday-Blitz-February-20-2024"]
[Site "Chess.com"]
[Date "2024.02.20"]
[Round "3"]
[White "DonJuanEGenaro"]
[Black "scandalgod"]
[Result "1-0"]
[WhiteElo "2117"]
[BlackElo "2490"]
[TimeControl "180+1"]
[EndTime "14:27:02 PST"]
[Termination "DonJuanEGenaro won on time"]

1. d4 {[%clk 0:03:00.9]} 1... d5 {[%clk 0:02:56.3]} 2. Nf3 {[%clk 0:03:00.3]}
2... Nf6 {[%clk 0:02:55.9]} 3. c4 {[%clk 0:03:00.3]} 3... c6 {[%clk 0:02:55.9]}
4. cxd5 {[%clk 0:03:00.6]} 4... cxd5 {[%clk 0:02:55.8]} 5. Nc3 {[%clk
0:03:00.3]} 5... Nc6 {[%clk 0:02:56.3]} 6. Bf4 {[%clk 0:03:00.2]} 6... a6 {[%clk
0:02:56.4]} 7. Ne5 {[%clk 0:02:56.2]} 7... e6 {[%clk 0:02:55.1]} 8. e3 {[%clk
0:02:49.9]} 8... Bd6 {[%clk 0:02:54.4]} 9. Nxc6 {[%clk 0:02:45.8]} 9... bxc6
{[%clk 0:02:53.7]} 10. Bxd6 {[%clk 0:02:45.6]} 10... Qxd6 {[%clk 0:02:52.8]} 11.
Be2 {[%clk 0:02:45.3]} 11... O-O {[%clk 0:02:51.9]} 12. O-O {[%clk 0:02:41.2]}
12... c5 {[%clk 0:02:51.6]} 13. Qa4 {[%clk 0:02:24.1]} 13... cxd4 {[%clk
0:02:43.8]} 14. exd4 {[%clk 0:02:22.5]} 14... Bd7 {[%clk 0:02:39.7]} 15. Qc2
{[%clk 0:02:16.5]} 15... Rfc8 {[%clk 0:02:39.1]} 16. Qd2 {[%clk 0:02:15.3]}
16... Rab8 {[%clk 0:02:33.8]} 17. a3 {[%clk 0:02:14.8]} 17... Rc7 {[%clk
0:02:32.5]} 18. b4 {[%clk 0:02:14.2]} 18... Rbc8 {[%clk 0:02:31.5]} 19. Rfc1
{[%clk 0:02:13.2]} 19... g6 {[%clk 0:02:27.9]} 20. Qd3 {[%clk 0:02:09.4]} 20...
Ne4 {[%clk 0:02:14.1]} 21. Na2 {[%clk 0:02:04.5]} 21... Bb5 {[%clk 0:02:09.3]}
22. Qe3 {[%clk 0:01:59.1]} 22... Rc2 {[%clk 0:01:36.4]} 23. Bd3 {[%clk
0:01:45.8]} 23... Bxd3 {[%clk 0:01:20.8]} 24. Qxd3 {[%clk 0:01:44.8]} 24... R2c4
{[%clk 0:01:02.6]} 25. f3 {[%clk 0:01:34.8]} 25... Nf6 {[%clk 0:00:41.4]} 26.
Rc3 {[%clk 0:01:32.8]} 26... Nh5 {[%clk 0:00:36.7]} 27. Rac1 {[%clk 0:01:27.7]}
27... Nf4 {[%clk 0:00:36.8]} 28. Qe3 {[%clk 0:01:23.2]} 28... h5 {[%clk
0:00:31.1]} 29. g3 {[%clk 0:01:20.7]} 29... Nh3+ {[%clk 0:00:15]} 30. Kg2 {[%clk
0:01:20.3]} 30... a5 {[%clk 0:00:08.2]} 31. Rxc4 {[%clk 0:01:16.2]} 31... dxc4
{[%clk 0:00:07.3]} 32. Kxh3 {[%clk 0:01:15]} 32... axb4 {[%clk 0:00:07.4]} 33.
Nxb4 {[%clk 0:01:12.6]} 33... Qb6 {[%clk 0:00:05.4]} 34. Rc3 {[%clk 0:01:11.3]}
34... Qb5 {[%clk 0:00:05.4]} 35. Qe5 {[%clk 0:01:10.6]} 35... Qa4 {[%clk
0:00:04.9]} 36. Qe2 {[%clk 0:01:05.7]} 36... Qb5 {[%clk 0:00:03.4]} 37. Kg2
{[%clk 0:01:01.7]} 37... h4 {[%clk 0:00:03.6]} 38. Qe5 {[%clk 0:00:58.1]} 38...
Qa4 {[%clk 0:00:02.8]} 39. Qf6 {[%clk 0:00:57.4]} 39... Qd1 {[%clk 0:00:01.9]}
40. Rc2 {[%clk 0:00:40.5]} 40... h3+ {[%clk 0:00:02.1]} 41. Kxh3 {[%clk
0:00:39.7]} 41... Qf1+ {[%clk 0:00:02.2]} 42. Kg4 {[%clk 0:00:39.4]} 42... c3
{[%clk 0:00:01.3]} 43. d5 {[%clk 0:00:35.3]} 1-0

[Event "Late-Titled-Tuesday-Blitz-February-20-2024"]
[Site "Chess.com"]
[Date "2024.02.20"]
[Round "3"]
[White "Dinamo3"]
[Black "TemploVillamarin"]
[Result "1-0"]
[WhiteElo "2519"]
[BlackElo "2179"]
[TimeControl "180+1"]
[EndTime "14:27:04 PST"]
[Termination "Dinamo3 won by resignation"]

1. c4 {[%clk 0:02:55.1]} 1... Nf6 {[%clk 0:02:52.9]} 2. Nc3 {[%clk 0:02:54.1]}
2... g6 {[%clk 0:02:51.9]} 3. g3 {[%clk 0:02:54.4]} 3... Bg7 {[%clk 0:02:51.9]}
4. Bg2 {[%clk 0:02:54.9]} 4... c6 {[%clk 0:02:51.6]} 5. d3 {[%clk 0:02:55.4]}
5... d5 {[%clk 0:02:51.8]} 6. Nf3 {[%clk 0:02:29.7]} 6... dxc4 {[%clk
0:02:48.4]} 7. dxc4 {[%clk 0:02:29.5]} 7... Qxd1+ {[%clk 0:02:48.1]} 8. Nxd1
{[%clk 0:02:25]} 8... O-O {[%clk 0:02:47.7]} 9. O-O {[%clk 0:02:03.7]} 9... Be6
{[%clk 0:02:46.8]} 10. Ne3 {[%clk 0:02:03]} 10... Ng4 {[%clk 0:02:34.5]} 11.
Nxg4 {[%clk 0:01:59.3]} 11... Bxg4 {[%clk 0:02:35.4]} 12. Be3 {[%clk 0:01:44.1]}
12... Nd7 {[%clk 0:02:27.6]} 13. Rad1 {[%clk 0:01:39.6]} 13... Nb6 {[%clk
0:02:20]} 14. b3 {[%clk 0:01:38.7]} 14... Rad8 {[%clk 0:02:16.8]} 15. a4 {[%clk
0:01:32.6]} 15... Nc8 {[%clk 0:02:13.3]} 16. a5 {[%clk 0:01:05.7]} 16... Bf5
{[%clk 0:02:04.4]} 17. Nd4 {[%clk 0:01:01.3]} 17... Bxd4 {[%clk 0:01:54.2]} 18.
Rxd4 {[%clk 0:01:02.2]} 18... Rxd4 {[%clk 0:01:53.7]} 19. Bxd4 {[%clk
0:01:03.1]} 19... Rd8 {[%clk 0:01:52.4]} 20. Bc3 {[%clk 0:00:57]} 20... Bc2
{[%clk 0:01:45.2]} 21. b4 {[%clk 0:00:57.2]} 21... Nd6 {[%clk 0:01:38.7]} 22.
Rc1 {[%clk 0:00:56.7]} 22... Bb3 {[%clk 0:01:34.2]} 23. c5 {[%clk 0:00:53.8]}
23... Nb5 {[%clk 0:01:34.2]} 24. Be1 {[%clk 0:00:51.5]} 24... Nd4 {[%clk
0:01:25]} 25. Kf1 {[%clk 0:00:47.5]} 25... e5 {[%clk 0:01:18]} 26. e3 {[%clk
0:00:47.5]} 26... Nb5 {[%clk 0:01:14.3]} 27. a6 {[%clk 0:00:41.3]} 27... bxa6
{[%clk 0:01:01.3]} 28. Bxc6 {[%clk 0:00:41.6]} 28... f5 {[%clk 0:00:57.4]} 29.
Bb7 {[%clk 0:00:41.5]} 29... Nc7 {[%clk 0:00:51.4]} 30. Bc3 {[%clk 0:00:40.8]}
30... Nd5 {[%clk 0:00:38.8]} 31. Bxe5 {[%clk 0:00:30.5]} 31... Nxb4 {[%clk
0:00:33]} 32. c6 {[%clk 0:00:30.2]} 32... Be6 {[%clk 0:00:23.3]} 33. c7 {[%clk
0:00:29.2]} 33... Rf8 {[%clk 0:00:16.7]} 34. c8=Q {[%clk 0:00:29.3]} 34... Bxc8
{[%clk 0:00:16.8]} 35. Rxc8 {[%clk 0:00:29.7]} 35... Rxc8 {[%clk 0:00:13.5]} 36.
Bxc8 {[%clk 0:00:30.6]} 36... a5 {[%clk 0:00:14.4]} 37. Bd7 {[%clk 0:00:29]}
37... Nd3 {[%clk 0:00:14.1]} 38. Bd4 {[%clk 0:00:24.1]} 38... a4 {[%clk
0:00:11.1]} 39. Bxa4 {[%clk 0:00:23.5]} 1-0

[Event "Late-Titled-Tuesday-Blitz-February-20-2024"]
[Site "Chess.com"]
[Date "2024.02.20"]
[Round "3"]
[White "dedpihto_v_kozhanom_palto"]
[Black "DrVelja"]
[Result "0-1"]
[WhiteElo "2687"]
[BlackElo "2981"]
[TimeControl "180+1"]
[EndTime "14:27:06 PST"]
[Termination "DrVelja won on time"]

1. c4 {[%clk 0:02:59.5]} 1... e5 {[%clk 0:02:58.9]} 2. Nc3 {[%clk 0:02:56.4]}
2... Nf6 {[%clk 0:02:58.7]} 3. Nf3 {[%clk 0:02:57.1]} 3... Nc6 {[%clk
0:02:57.4]} 4. e3 {[%clk 0:02:57.5]} 4... Bb4 {[%clk 0:02:56.7]} 5. Qc2 {[%clk
0:02:57.8]} 5... Bxc3 {[%clk 0:02:57]} 6. Qxc3 {[%clk 0:02:58.7]} 6... Qe7
{[%clk 0:02:56.9]} 7. d4 {[%clk 0:02:59]} 7... e4 {[%clk 0:02:57.2]} 8. d5
{[%clk 0:02:52.2]} 8... exf3 {[%clk 0:02:49.6]} 9. dxc6 {[%clk 0:02:52.3]} 9...
fxg2 {[%clk 0:02:45.8]} 10. cxd7+ {[%clk 0:02:46.6]} 10... Bxd7 {[%clk
0:02:46.7]} 11. Bxg2 {[%clk 0:02:47]} 11... Bc6 {[%clk 0:02:47]} 12. Bxc6+
{[%clk 0:02:40]} 12... bxc6 {[%clk 0:02:46.9]} 13. f3 {[%clk 0:02:27.1]} 13...
O-O-O {[%clk 0:02:40.8]} 14. Bd2 {[%clk 0:02:21.1]} 14... Nd7 {[%clk 0:02:19.7]}
15. O-O-O {[%clk 0:02:10.5]} 15... Ne5 {[%clk 0:02:20.3]} 16. Qa5 {[%clk
0:01:39.5]} 16... Kb7 {[%clk 0:01:59.9]} 17. Kb1 {[%clk 0:00:40.1]} 17... Nxf3
{[%clk 0:01:47]} 18. Bb4 {[%clk 0:00:31.8]} 18... Qe4+ {[%clk 0:01:45.3]} 19.
Ka1 {[%clk 0:00:32.4]} 19... Rxd1+ {[%clk 0:01:33.6]} 20. Rxd1 {[%clk
0:00:33.3]} 20... Qxc4 {[%clk 0:01:33.8]} 21. Bc5 {[%clk 0:00:33.6]} 21... a6
{[%clk 0:01:32.9]} 22. a3 {[%clk 0:00:27.9]} 22... Ne5 {[%clk 0:00:52.5]} 23.
Bb6 {[%clk 0:00:16.9]} 23... Nd3 {[%clk 0:00:46.4]} 24. Bxc7 {[%clk 0:00:16.5]}
24... Nc5 {[%clk 0:00:37.6]} 25. Qb6+ {[%clk 0:00:14.6]} 25... Ka8 {[%clk
0:00:33.6]} 26. Bd6 {[%clk 0:00:09.1]} 26... Nb7 {[%clk 0:00:20.7]} 27. Bg3
{[%clk 0:00:03.5]} 27... Qb5 {[%clk 0:00:19.3]} 28. Qc7 {[%clk 0:00:03.6]} 28...
h5 {[%clk 0:00:09.1]} 29. e4 {[%clk 0:00:03.9]} 29... h4 {[%clk 0:00:08.4]} 30.
Bf2 {[%clk 0:00:03]} 30... f6 {[%clk 0:00:04.8]} 31. Bb6 {[%clk 0:00:01.7]}
31... Qe5 {[%clk 0:00:04.5]} 0-1

[Event "Late-Titled-Tuesday-Blitz-February-20-2024"]
[Site "Chess.com"]
[Date "2024.02.20"]
[Round "3"]
[White "AlejandroArias"]
[Black "Pelusiansky"]
[Result "0-1"]
[WhiteElo "2371"]
[BlackElo "2564"]
[TimeControl "180+1"]
[EndTime "14:27:08 PST"]
[Termination "Pelusiansky won on time"]

1. e4 {[%clk 0:03:00.9]} 1... c6 {[%clk 0:02:55.2]} 2. d4 {[%clk 0:03:00.3]}
2... d5 {[%clk 0:02:55.4]} 3. exd5 {[%clk 0:03:00.1]} 3... cxd5 {[%clk
0:02:55.2]} 4. Bd3 {[%clk 0:03:00.2]} 4... Nc6 {[%clk 0:02:55.3]} 5. c3 {[%clk
0:02:59.8]} 5... Nf6 {[%clk 0:02:53.6]} 6. h3 {[%clk 0:02:59.6]} 6... e5 {[%clk
0:02:45.8]} 7. dxe5 {[%clk 0:02:58.7]} 7... Nxe5 {[%clk 0:02:46.7]} 8. Nf3
{[%clk 0:02:59]} 8... Nxd3+ {[%clk 0:02:43.6]} 9. Qxd3 {[%clk 0:02:59.9]} 9...
h6 {[%clk 0:02:40.3]} 10. O-O {[%clk 0:02:58.2]} 10... Be7 {[%clk 0:02:32.7]}
11. Bf4 {[%clk 0:02:52.9]} 11... O-O {[%clk 0:02:32.5]} 12. Nbd2 {[%clk
0:02:52.4]} 12... Re8 {[%clk 0:02:30.6]} 13. Rfe1 {[%clk 0:02:50.3]} 13... Be6
{[%clk 0:02:27]} 14. Nd4 {[%clk 0:02:45.4]} 14... Qd7 {[%clk 0:02:26]} 15. Nxe6
{[%clk 0:02:14.5]} 15... fxe6 {[%clk 0:02:25.9]} 16. Nf3 {[%clk 0:02:14.7]}
16... Bd6 {[%clk 0:02:09.4]} 17. Be5 {[%clk 0:02:06.3]} 17... Ne4 {[%clk
0:01:59.1]} 18. Rxe4 {[%clk 0:02:04.3]} 18... dxe4 {[%clk 0:01:59]} 19. Qxe4
{[%clk 0:01:57.7]} 19... Bxe5 {[%clk 0:01:52.2]} 20. Nxe5 {[%clk 0:01:55.7]}
20... Qd5 {[%clk 0:01:52]} 21. Qe3 {[%clk 0:01:47]} 21... Rad8 {[%clk
0:01:47.1]} 22. Nf3 {[%clk 0:01:35]} 22... a6 {[%clk 0:01:36.4]} 23. b3 {[%clk
0:01:09.3]} 23... Qd3 {[%clk 0:01:28.2]} 24. Re1 {[%clk 0:01:04.7]} 24... Qxe3
{[%clk 0:01:27.1]} 25. Rxe3 {[%clk 0:01:04.5]} 25... e5 {[%clk 0:01:23.1]} 26.
a4 {[%clk 0:00:57.5]} 26... Rd1+ {[%clk 0:01:19.6]} 27. Kh2 {[%clk 0:00:56.9]}
27... e4 {[%clk 0:01:20]} 28. Nd4 {[%clk 0:00:54.8]} 28... Rd3 {[%clk 0:01:20]}
29. Kg3 {[%clk 0:00:37.7]} 29... Rc8 {[%clk 0:01:13.5]} 30. Ne2 {[%clk
0:00:34.3]} 30... g5 {[%clk 0:01:05.5]} 31. Kg4 {[%clk 0:00:28.2]} 31... Rxe3
{[%clk 0:00:58.2]} 32. fxe3 {[%clk 0:00:27.8]} 32... Rf8 {[%clk 0:00:49.1]} 33.
Kg3 {[%clk 0:00:20.7]} 33... Kg7 {[%clk 0:00:47.1]} 34. Nd4 {[%clk 0:00:20.3]}
34... Kg6 {[%clk 0:00:46.5]} 35. c4 {[%clk 0:00:20.3]} 35... Rf1 {[%clk
0:00:44.9]} 36. Ne6 {[%clk 0:00:13.5]} 36... b6 {[%clk 0:00:34.1]} 37. Nd4
{[%clk 0:00:08.8]} 37... h5 {[%clk 0:00:32.5]} 38. Ne6 {[%clk 0:00:05.8]} 38...
h4+ {[%clk 0:00:32.6]} 39. Kh2 {[%clk 0:00:05.4]} 39... Re1 {[%clk 0:00:32.4]}
40. a5 {[%clk 0:00:02.1]} 40... bxa5 {[%clk 0:00:31.5]} 41. c5 {[%clk
0:00:02.3]} 41... Rxe3 {[%clk 0:00:30.9]} 0-1

[Event "Late-Titled-Tuesday-Blitz-February-20-2024"]
[Site "Chess.com"]
[Date "2024.02.20"]
[Round "3"]
[White "krzyzan94"]
[Black "ahkashefi2800"]
[Result "0-1"]
[WhiteElo "2770"]
[BlackElo "2551"]
[TimeControl "180+1"]
[EndTime "14:27:11 PST"]
[Termination "ahkashefi2800 won on time"]

1. e4 {[%clk 0:03:00.9]} 1... c6 {[%clk 0:03:00]} 2. d4 {[%clk 0:03:00.1]} 2...
d5 {[%clk 0:03:00]} 3. e5 {[%clk 0:03:00.8]} 3... Bf5 {[%clk 0:03:00.1]} 4. c4
{[%clk 0:03:01]} 4... e6 {[%clk 0:03:00]} 5. Nc3 {[%clk 0:03:01.4]} 5... Ne7
{[%clk 0:02:59.7]} 6. h3 {[%clk 0:02:55.5]} 6... Nd7 {[%clk 0:02:59.7]} 7. Nf3
{[%clk 0:02:50.6]} 7... Bg6 {[%clk 0:02:59.4]} 8. a3 {[%clk 0:02:49.1]} 8... Rc8
{[%clk 0:02:59]} 9. c5 {[%clk 0:02:45]} 9... f6 {[%clk 0:02:55.5]} 10. Bf4
{[%clk 0:02:36.5]} 10... Bh5 {[%clk 0:02:47]} 11. g4 {[%clk 0:02:34.8]} 11...
Bf7 {[%clk 0:02:47.2]} 12. Bg3 {[%clk 0:02:11.8]} 12... Ng6 {[%clk 0:02:46.4]}
13. exf6 {[%clk 0:02:02.2]} 13... gxf6 {[%clk 0:02:45.6]} 14. h4 {[%clk
0:02:01.1]} 14... h5 {[%clk 0:02:34.7]} 15. gxh5 {[%clk 0:01:59.9]} 15... Ne7
{[%clk 0:02:31.1]} 16. Bh3 {[%clk 0:01:53.3]} 16... Rxh5 {[%clk 0:02:18.9]} 17.
Bg4 {[%clk 0:01:46.5]} 17... Rh8 {[%clk 0:02:06.3]} 18. Qe2 {[%clk 0:01:44.8]}
18... f5 {[%clk 0:02:02.6]} 19. Bh3 {[%clk 0:01:41.7]} 19... Nf6 {[%clk
0:01:51.5]} 20. Be5 {[%clk 0:01:38.7]} 20... Rh6 {[%clk 0:01:37.3]} 21. Bxf6
{[%clk 0:01:22.8]} 21... Rxf6 {[%clk 0:01:37.3]} 22. Ng5 {[%clk 0:01:03.4]}
22... Ng6 {[%clk 0:01:25.3]} 23. O-O-O {[%clk 0:00:57.8]} 23... Bh6 {[%clk
0:01:17]} 24. Kb1 {[%clk 0:00:55.2]} 24... Nf4 {[%clk 0:01:04.2]} 25. Qf3 {[%clk
0:00:43.2]} 25... Nxh3 {[%clk 0:01:02.6]} 26. Rxh3 {[%clk 0:00:42.9]} 26... Qe7
{[%clk 0:00:56.1]} 27. Re1 {[%clk 0:00:39.5]} 27... Kd7 {[%clk 0:00:56.2]} 28.
Ne2 {[%clk 0:00:32.7]} 28... e5 {[%clk 0:00:44.1]} 29. dxe5 {[%clk 0:00:15.7]}
29... Qxe5 {[%clk 0:00:43.8]} 30. Rhh1 {[%clk 0:00:14.8]} 30... Re8 {[%clk
0:00:36.9]} 31. Nf4 {[%clk 0:00:05.3]} 31... Qxe1+ {[%clk 0:00:35.9]} 32. Rxe1
{[%clk 0:00:06.2]} 32... Rxe1+ {[%clk 0:00:35.8]} 33. Kc2 {[%clk 0:00:06.9]}
33... Re4 {[%clk 0:00:28]} 34. Qc3 {[%clk 0:00:04.5]} 34... d4 {[%clk
0:00:18.7]} 35. Qb4 {[%clk 0:00:03.6]} 35... d3+ {[%clk 0:00:18]} 36. Nxd3
{[%clk 0:00:01.9]} 36... Rxb4 {[%clk 0:00:18.3]} 0-1

[Event "Late-Titled-Tuesday-Blitz-February-20-2024"]
[Site "Chess.com"]
[Date "2024.02.20"]
[Round "3"]
[White "IndianSchoolOfSuffering"]
[Black "Rashad_Zeynalli"]
[Result "0-1"]
[WhiteElo "2439"]
[BlackElo "2643"]
[TimeControl "180+1"]
[EndTime "14:27:15 PST"]
[Termination "Rashad_Zeynalli won by resignation"]

1. e4 {[%clk 0:02:58.9]} 1... c5 {[%clk 0:02:58.6]} 2. Nf3 {[%clk 0:02:57.6]}
2... d6 {[%clk 0:02:59.1]} 3. d4 {[%clk 0:02:56.3]} 3... cxd4 {[%clk 0:03:00]}
4. Nxd4 {[%clk 0:02:56.3]} 4... Nf6 {[%clk 0:03:00.6]} 5. Nc3 {[%clk 0:02:55.7]}
5... a6 {[%clk 0:03:01.3]} 6. Bg5 {[%clk 0:02:54]} 6... e6 {[%clk 0:03:00.8]} 7.
f4 {[%clk 0:02:53.8]} 7... Be7 {[%clk 0:02:59.6]} 8. Qf3 {[%clk 0:02:52.7]} 8...
Qc7 {[%clk 0:02:57.9]} 9. O-O-O {[%clk 0:02:52.5]} 9... Nbd7 {[%clk 0:02:58.4]}
10. g4 {[%clk 0:02:44.9]} 10... b5 {[%clk 0:02:54.2]} 11. Bxf6 {[%clk
0:02:41.1]} 11... Nxf6 {[%clk 0:02:53.8]} 12. g5 {[%clk 0:02:40.7]} 12... Nd7
{[%clk 0:02:54.3]} 13. f5 {[%clk 0:02:40.9]} 13... Nc5 {[%clk 0:02:54]} 14. fxe6
{[%clk 0:02:28.8]} 14... fxe6 {[%clk 0:02:40.6]} 15. Bh3 {[%clk 0:02:22.6]}
15... Bxg5+ {[%clk 0:02:31]} 16. Kb1 {[%clk 0:02:21.6]} 16... Bf6 {[%clk
0:02:30.4]} 17. Rhe1 {[%clk 0:01:47.1]} 17... O-O {[%clk 0:02:26.2]} 18. Qg2
{[%clk 0:01:36.7]} 18... Kh8 {[%clk 0:02:19.7]} 19. a3 {[%clk 0:01:33.8]} 19...
Rb8 {[%clk 0:02:16.9]} 20. Na2 {[%clk 0:00:53.3]} 20... a5 {[%clk 0:02:00.7]}
21. c3 {[%clk 0:00:52.5]} 21... Bd7 {[%clk 0:01:45.1]} 22. Bg4 {[%clk
0:00:46.6]} 22... Rfe8 {[%clk 0:01:23.3]} 23. Bh5 {[%clk 0:00:42.7]} 23... Rec8
{[%clk 0:01:18.8]} 24. Bg4 {[%clk 0:00:41]} 24... Qb7 {[%clk 0:00:58]} 25. Qh3
{[%clk 0:00:36.2]} 25... Nxe4 {[%clk 0:00:50.6]} 26. Bf3 {[%clk 0:00:21.8]}
26... d5 {[%clk 0:00:44.8]} 27. Bxe4 {[%clk 0:00:19.6]} 27... dxe4 {[%clk
0:00:44]} 28. Qe3 {[%clk 0:00:16]} 28... e5 {[%clk 0:00:36.8]} 29. Nc2 {[%clk
0:00:15.5]} 29... Bg4 {[%clk 0:00:31.7]} 30. Rd6 {[%clk 0:00:12.5]} 30... Bf5
{[%clk 0:00:29]} 31. Rf1 {[%clk 0:00:11.5]} 31... Bg6 {[%clk 0:00:27.5]} 32. h4
{[%clk 0:00:09.3]} 32... Bxh4 {[%clk 0:00:22.2]} 33. Rxg6 {[%clk 0:00:08.3]}
33... hxg6 {[%clk 0:00:21.5]} 34. Qh3 {[%clk 0:00:08.9]} 34... g5 {[%clk
0:00:19.3]} 35. Ne3 {[%clk 0:00:08.5]} 35... Qe7 {[%clk 0:00:14.3]} 36. Nf5
{[%clk 0:00:07.7]} 36... Qd7 {[%clk 0:00:14]} 37. Qg4 {[%clk 0:00:05.5]} 37...
Qd3+ {[%clk 0:00:13.8]} 38. Ka1 {[%clk 0:00:03.2]} 38... Qxf1+ {[%clk
0:00:14.2]} 0-1

[Event "Late-Titled-Tuesday-Blitz-February-20-2024"]
[Site "Chess.com"]
[Date "2024.02.20"]
[Round "3"]
[White "EcosseKillie"]
[Black "wild3000"]
[Result "1-0"]
[WhiteElo "2174"]
[BlackElo "2403"]
[TimeControl "180+1"]
[EndTime "14:27:15 PST"]
[Termination "EcosseKillie won by resignation"]

1. d4 {[%clk 0:03:00.9]} 1... d5 {[%clk 0:02:45.7]} 2. Bg5 {[%clk 0:03:01.1]}
2... c6 {[%clk 0:02:45]} 3. Nf3 {[%clk 0:03:01.1]} 3... h6 {[%clk 0:02:44.6]} 4.
Bh4 {[%clk 0:03:01.2]} 4... Bg4 {[%clk 0:02:41.8]} 5. Nbd2 {[%clk 0:02:59.8]}
5... Nd7 {[%clk 0:02:41.3]} 6. e3 {[%clk 0:02:55.6]} 6... Ngf6 {[%clk
0:02:40.7]} 7. Be2 {[%clk 0:02:55.3]} 7... e6 {[%clk 0:02:40.2]} 8. Ne5 {[%clk
0:02:54.6]} 8... Bxe2 {[%clk 0:02:39.7]} 9. Qxe2 {[%clk 0:02:53.1]} 9... Be7
{[%clk 0:02:39.5]} 10. f4 {[%clk 0:02:52.4]} 10... O-O {[%clk 0:02:31]} 11. O-O
{[%clk 0:02:49.6]} 11... c5 {[%clk 0:02:25.3]} 12. c3 {[%clk 0:02:49.3]} 12...
a6 {[%clk 0:02:24.7]} 13. Rf3 {[%clk 0:02:36.8]} 13... Ne4 {[%clk 0:02:13.3]}
14. Bxe7 {[%clk 0:02:30]} 14... Qxe7 {[%clk 0:02:14.2]} 15. Nxe4 {[%clk
0:02:30.1]} 15... dxe4 {[%clk 0:02:14.1]} 16. Rf2 {[%clk 0:02:23]} 16... cxd4
{[%clk 0:02:13.2]} 17. exd4 {[%clk 0:02:22.9]} 17... f5 {[%clk 0:02:11.4]} 18.
Ng6 {[%clk 0:02:22.5]} 18... Qd6 {[%clk 0:02:07]} 19. Nxf8 {[%clk 0:02:21.1]}
19... Rxf8 {[%clk 0:02:07.9]} 20. Rd1 {[%clk 0:02:21]} 20... Nf6 {[%clk
0:02:00.3]} 21. Qf1 {[%clk 0:02:15.9]} 21... b5 {[%clk 0:01:48.2]} 22. Re2
{[%clk 0:02:08.8]} 22... Rc8 {[%clk 0:01:42.9]} 23. Ree1 {[%clk 0:02:08.3]}
23... Qd5 {[%clk 0:01:38.6]} 24. a4 {[%clk 0:02:03]} 24... Rb8 {[%clk
0:01:14.4]} 25. axb5 {[%clk 0:01:58.4]} 25... axb5 {[%clk 0:01:15.3]} 26. Ra1
{[%clk 0:01:56.3]} 26... b4 {[%clk 0:01:15.1]} 27. Qa6 {[%clk 0:01:41.3]} 27...
bxc3 {[%clk 0:01:07.6]} 28. bxc3 {[%clk 0:01:42.2]} 28... Rb2 {[%clk 0:01:06.6]}
29. Reb1 {[%clk 0:01:30.6]} 29... Rd2 {[%clk 0:00:58]} 30. Ra5 {[%clk 0:01:29]}
30... Qd8 {[%clk 0:00:34.7]} 31. Qxe6+ {[%clk 0:01:28]} 31... Kh8 {[%clk
0:00:28]} 32. Rab5 {[%clk 0:01:27.5]} 32... Qd7 {[%clk 0:00:22.6]} 33. Qxf5
{[%clk 0:01:18.2]} 33... Qxf5 {[%clk 0:00:21.8]} 34. Rxf5 {[%clk 0:01:19.1]}
34... e3 {[%clk 0:00:21.1]} 35. Re5 {[%clk 0:01:19.3]} 35... Ng4 {[%clk
0:00:19.6]} 36. Re8+ {[%clk 0:01:16]} 36... Kh7 {[%clk 0:00:19.5]} 37. h3 {[%clk
0:01:16.5]} 37... e2 {[%clk 0:00:16.4]} 38. hxg4 {[%clk 0:01:14]} 38... Rd1+
{[%clk 0:00:16.3]} 39. Kf2 {[%clk 0:01:13.9]} 39... Rxb1 {[%clk 0:00:16.2]} 40.
Rxe2 {[%clk 0:01:14.4]} 40... Rc1 {[%clk 0:00:16.2]} 41. Re3 {[%clk 0:01:14.6]}
41... Kg6 {[%clk 0:00:16]} 42. Kf3 {[%clk 0:01:11.7]} 42... Kf6 {[%clk
0:00:15.8]} 43. Ke4 {[%clk 0:01:12.1]} 43... Rc2 {[%clk 0:00:15.9]} 44. g3
{[%clk 0:01:11.6]} 44... Ke6 {[%clk 0:00:16.1]} 45. f5+ {[%clk 0:01:11]} 45...
Kf6 {[%clk 0:00:16]} 46. Kd3 {[%clk 0:01:11.9]} 46... Rc1 {[%clk 0:00:15.9]} 47.
d5 {[%clk 0:01:11.3]} 47... Rd1+ {[%clk 0:00:14.6]} 48. Kc4 {[%clk 0:01:11.8]}
48... Kg5 {[%clk 0:00:15.5]} 49. Kc5 {[%clk 0:01:09.8]} 49... Kxg4 {[%clk
0:00:15.6]} 50. d6 {[%clk 0:01:08.9]} 50... Kxf5 {[%clk 0:00:15.7]} 51. Kc6
{[%clk 0:01:08.6]} 51... g5 {[%clk 0:00:16.4]} 52. d7 {[%clk 0:01:08.1]} 52...
h5 {[%clk 0:00:16.4]} 53. Kc7 {[%clk 0:01:08.1]} 53... h4 {[%clk 0:00:15.8]} 54.
gxh4 {[%clk 0:01:08.4]} 54... gxh4 {[%clk 0:00:16.7]} 55. d8=Q {[%clk
0:01:08.5]} 55... Rxd8 {[%clk 0:00:17.1]} 56. Kxd8 {[%clk 0:01:09]} 56... Kf4
{[%clk 0:00:18]} 57. Rh3 {[%clk 0:01:08.9]} 57... Kg4 {[%clk 0:00:18.3]} 58. Rh1
{[%clk 0:01:09.3]} 58... h3 {[%clk 0:00:17.8]} 59. c4 {[%clk 0:01:09.4]} 59...
Kg3 {[%clk 0:00:18.7]} 60. c5 {[%clk 0:01:09.6]} 60... Kg2 {[%clk 0:00:19.6]}
61. Rxh3 {[%clk 0:01:09.9]} 61... Kxh3 {[%clk 0:00:19.8]} 62. c6 {[%clk
0:01:10.8]} 62... Kg4 {[%clk 0:00:20.7]} 63. c7 {[%clk 0:01:11.7]} 1-0